fUST/lending_fUST_20250121
["ID","MTS","AMOUNT","RATE_DAILY","PERIOD"]
[349804099,1737436255316,-500.0,0.00022465,3]
[349804100,1737436255325,-998.18,0.00022465,3]
[349804101,1737436255334,-500.81,0.00022465,3]
[349804102,1737436255344,-500.0,0.00022465,3]
[349804103,1737436255353,-532.30693044,0.00022465,3]
[349804104,1737436255362,-507.31873157,0.00022465,3]
[349804105,1737436255371,-1253.69,0.00022465,3]
[349804106,1737436255381,-500.0,0.00022465,3]
[349804107,1737436255390,-500.0,0.00022465,3]
[349804108,1737436255399,-539.27,0.00022465,3]
[349804109,1737436255409,-859.92,0.00022465,3]
[349804110,1737436255418,-500.0,0.00022465,3]
[349804111,1737436255427,-500.0,0.00022465,3]
[349804112,1737436255437,-1244.51,0.00022465,3]
[349804113,1737436255446,-500.0,0.00022465,3]
[349804114,1737436255455,-500.0,0.00022465,3]
[349804115,1737436255464,-856.94,0.00022465,3]
[349804116,1737436255473,-243.34533129,0.00022465,3]
[349804117,1737436255482,-500.0,0.00022465,3]
[349804118,1737436255491,-500.0,0.00022465,3]
[349804119,1737436255500,-565.02,0.00022465,3]
[349804120,1737436255509,-850.13,0.00022465,3]
[349804121,1737436255519,-500.0,0.00022465,3]
[349804122,1737436255528,-500.0,0.00022465,3]
[349804123,1737436255537,-511.72,0.00022465,3]
[349804124,1737436255668,-500.0,0.00022465,3]
[349804125,1737436255679,-500.0,0.00022465,3]
[349804126,1737436255688,-500.0,0.00022465,3]
[349804127,1737436255697,-500.0,0.00022465,3]
[349804128,1737436255707,-846.61,0.00022465,3]
[349804129,1737436255716,-500.0,0.00022465,3]
[349804130,1737436255725,-500.0,0.00022465,3]
[349804131,1737436255734,-510.96,0.00022465,3]
[349804132,1737436255744,-1671.98,0.00022465,2]
[349804133,1737436255755,-500.0,0.00022465,3]
[349804134,1737436255766,-500.0,0.00022465,3]
[349804135,1737436255776,-1863.02,0.00022465,3]
[349804136,1737436255785,-7275.37,0.00022465,3]
[349804137,1737436255795,-500.0,0.00022465,3]
[349804138,1737436255805,-500.0,0.00022465,3]
[349804139,1737436255815,-5517.57,0.00022465,3]
[349804140,1737436255824,-500.0,0.00022465,3]
[349804141,1737436255835,-500.0,0.00022465,3]
[349804142,1737436255845,-2016.17,0.00022465,3]
[349804143,1737436255855,-500.0,0.00022465,3]
[349804144,1737436255864,-718.57,0.00022465,3]
[349804145,1737436255874,-1581.02,0.00022465,3]
[349804146,1737436255883,-500.0,0.00022465,3]
[349804147,1737436255893,-849.72,0.00022465,3]
[349804148,1737436255903,-504.55894542,0.00022465,3]
[349804149,1737436255913,-500.0,0.00022465,3]
[349804150,1737436255922,-1294.2,0.00022465,3]
[349804151,1737436255932,-567.86,0.00022465,3]
[349804152,1737436255941,-500.0,0.00022465,3]
[349804153,1737436255951,-795.86,0.00022465,3]
[349804154,1737436255960,-500.0,0.00022465,3]
[349804155,1737436255970,-500.0,0.00022465,3]
[349804156,1737436255979,-2490.81,0.00022465,3]
[349804157,1737436255989,-602.21,0.00022465,3]
[349804158,1737436255999,-598.1,0.00022465,3]
[349804159,1737436256009,-906.2,0.00022465,3]
[349804160,1737436256018,-500.0,0.00022465,3]
[349804161,1737436256029,-500.0,0.00022465,3]
[349804162,1737436256040,-500.0,0.00022465,3]
[349804163,1737436256049,-500.0,0.00022465,3]
[349804164,1737436256059,-500.0,0.00022465,3]
[349804165,1737436256068,-500.0,0.00022465,3]
[349804166,1737436256078,-500.0,0.00022465,3]
[349804167,1737436256089,-500.0,0.00022465,3]
[349804168,1737436256099,-517.62,0.00022465,3]
[349804169,1737436256108,-500.0,0.00022465,3]
[349804170,1737436256117,-500.0,0.00022465,3]
[349804171,1737436256127,-35047.46,0.00022465,3]
[349804172,1737436256136,-3672.32,0.00022465,3]
[349804173,1737436256146,-500.0,0.00022465,3]
[349804174,1737436256156,-8328.07,0.00022465,3]
[349804175,1737436256165,-16648.53,0.00022465,3]
[349804176,1737436256175,-989.27,0.00022465,3]
[349804177,1737436256186,-2149.07,0.00022465,3]
[349804178,1737436256196,-500.0,0.00022465,3]
[349804179,1737436256206,-500.0,0.00022465,3]
[349804180,1737436256215,-500.0,0.00022465,3]
[349804181,1737436256225,-1654.0,0.00022465,3]
[349804182,1737436256235,-714.08,0.00022465,3]
[349804183,1737436256245,-809.87,0.00022465,3]
[349804184,1737436256255,-1737.78,0.00022465,3]
[349804185,1737436256265,-520.12,0.00022465,3]
[349804186,1737436256275,-225.99511947,0.00022465,3]
[349804187,1737436256285,-941.94,0.00022465,3]
[349804188,1737436256294,-668.23,0.00022465,3]
[349804189,1737436256304,-500.0,0.00022465,3]
[349804190,1737436256314,-4729.29,0.00022465,3]
[349804191,1737436256323,-760.16,0.00022465,3]
[349804192,1737436256332,-593.3535514,0.00022465,3]
[349804193,1737436256342,-500.0,0.00022465,3]
[349804194,1737436256351,-1266.7,0.00022465,3]
[349804195,1737436256361,-500.0,0.00022465,3]
[349804196,1737436256371,-836.8,0.00022465,3]
[349804197,1737436256381,-924.68,0.00022465,3]
[349804198,1737436256391,-2889.09,0.00022465,3]
[349804199,1737436256400,-500.0,0.00022465,3]
[349804200,1737436256410,-966.7,0.00022465,3]
[349804201,1737436256421,-1666.36,0.00022465,3]
[349804202,1737436256430,-725.57,0.00022465,3]
[349804203,1737436256440,-500.0,0.00022465,3]
[349804204,1737436256450,-4625.09,0.00022465,3]
[349804205,1737436256459,-4079.3,0.00022465,3]
[349804206,1737436256468,-522.87,0.00022465,3]
[349804207,1737436256479,-500.0,0.00022465,3]
[349804208,1737436256489,-7980.33,0.00022465,3]
[349804209,1737436256499,-3321.54,0.00022465,3]
[349804210,1737436256508,-2125.78,0.00022465,3]
[349804211,1737436256518,-700.2,0.00022465,3]
[349804212,1737436256528,-500.0,0.00022465,3]
[349804213,1737436256538,-500.0,0.00022465,3]
[349804214,1737436256547,-12319.31,0.00022465,3]
[349804215,1737436256560,-654.58,0.00022465,3]
[349804216,1737436256570,-1504.03,0.00022465,3]
[349804217,1737436256581,-581.59,0.00022465,3]
[349804218,1737436256591,-1705.49,0.00022465,3]
[349804219,1737436256601,-1357.55,0.00022465,3]
[349804220,1737436256611,-500.0,0.00022465,3]
[349804221,1737436256621,-500.0,0.00022465,3]
[349804222,1737436256631,-500.0,0.00022465,3]
[349804223,1737436256641,-500.0,0.00022465,3]
[349804224,1737436256651,-841.13,0.00022465,3]
[349804225,1737436256660,-938.07,0.00022465,3]
[349804226,1737436256670,-688.07,0.00022465,3]
[349804227,1737436256681,-500.0,0.00022465,3]
[349804228,1737436256691,-2173.27,0.00022465,3]
[349804229,1737436256701,-500.0,0.00022465,3]
[349804230,1737436256711,-544.6,0.00022465,3]
[349804231,1737436256721,-47576.26,0.00022465,3]
[349804232,1737436256731,-676.95,0.00022465,3]
[349804233,1737436256741,-500.0,0.00022465,3]
[349804234,1737436256752,-500.0,0.00022465,3]
[349804235,1737436256765,-3665.17,0.00022465,3]
[349804236,1737436256774,-500.0,0.00022465,3]
[349804237,1737436256784,-2353.99,0.00022465,3]
[349804238,1737436256793,-500.0,0.00022465,3]
[349804239,1737436256809,-707.0,0.00022466,3]
[349804240,1737436256819,-1000.80730426,0.00022521,2]
[349804241,1737436256830,-342.98846306,0.00022521,2]
[349804242,1737436256840,-5346.72402757,0.00022567,2]
[349804243,1737436256851,-3583.14612688,0.0002258,60]
[349804244,1737436256861,-500.0,0.00022602,3]
[349804245,1737436256870,-500.0,0.00022602,3]
[349804246,1737436256880,-500.0,0.00022602,3]
[349804247,1737436256889,-1235.39,0.00022602,3]
[349804248,1737436256899,-500.0,0.00022602,3]
[349804249,1737436256908,-348.49836911,0.00022602,3]
[349804250,1737436256917,-500.0,0.00022602,3]
[349804251,1737436256928,-796.12,0.00022602,3]
[349804252,1737436256937,-500.0,0.00022602,3]
[349804253,1737436256947,-500.0,0.00022602,3]
[349804254,1737436256957,-500.0,0.00022602,3]
[349804255,1737436256966,-998.97,0.00022602,3]
[349804256,1737436256975,-604.25,0.00022602,3]
[349804257,1737436256985,-188.0,0.00022602,2]
[349804258,1737436256995,-500.0,0.00022602,3]
[349804259,1737436257004,-500.0,0.00022602,3]
[349804260,1737436257014,-500.0,0.00022602,3]
[349804261,1737436257023,-500.0,0.00022602,3]
[349804262,1737436257033,-500.0,0.00022602,3]
[349804263,1737436257043,-500.0,0.00022602,3]
[349804264,1737436257052,-500.0,0.00022602,3]
[349804265,1737436257063,-500.0,0.00022602,3]
[349804266,1737436257072,-500.0,0.00022602,3]
[349804267,1737436257081,-548.78,0.00022602,3]
[349804268,1737436257091,-500.0,0.00022602,3]
[349804269,1737436257100,-500.0,0.00022602,3]
[349804270,1737436257110,-500.0,0.00022602,3]
[349804271,1737436257119,-500.0,0.00022602,3]
[349804272,1737436257129,-500.0,0.00022602,3]
[349804273,1737436257138,-500.0,0.00022602,3]
[349804274,1737436257147,-500.0,0.00022602,3]
[349804275,1737436257156,-500.0,0.00022602,3]
[349804276,1737436257165,-500.0,0.00022602,3]
[349804277,1737436257176,-1333.83,0.00022602,3]
[349804278,1737436257185,-500.0,0.00022602,3]
[349804279,1737436257195,-281.3465763,0.00022602,3]
[349804280,1737436257204,-500.0,0.00022602,3]
[349804281,1737436257214,-1527.69,0.00022602,3]
[349804282,1737436257224,-500.0,0.00022602,3]
[349804283,1737436257233,-500.0,0.00022602,3]
[349804284,1737436257242,-500.0,0.00022602,3]
[349804285,1737436257252,-500.0,0.00022602,3]
[349804286,1737436257261,-953.42,0.00022602,3]
[349804287,1737436257270,-500.0,0.00022602,3]
[349804288,1737436257280,-500.0,0.00022602,3]
[349804289,1737436257405,-500.0,0.00022602,3]
[349804290,1737436257415,-588.92044453,0.00022602,3]
[349804291,1737436257425,-1913.55,0.00022602,3]
[349804292,1737436257434,-822.24,0.00022602,3]
[349804293,1737436257444,-500.0,0.00022602,3]
[349804294,1737436257454,-500.0,0.00022602,3]
[349804295,1737436257463,-824.53,0.00022602,3]
[349804296,1737436257473,-500.0,0.00022602,3]
[349804297,1737436257482,-500.0,0.00022602,3]
[349804298,1737436257492,-1171.5,0.00022602,3]
[349804299,1737436257501,-757.81,0.00022602,3]
[349804300,1737436257511,-502.26378831,0.00022602,3]
[349804301,1737436257520,-730.74,0.00022602,3]
[349804302,1737436257529,-500.0,0.00022602,3]
[349804303,1737436257539,-717.4,0.00022602,3]
[349804304,1737436257548,-1169.85,0.00022602,3]
[349804305,1737436257559,-1423.53,0.00022602,3]
[349804306,1737436257569,-624.85,0.00022602,3]
[349804307,1737436257580,-500.0,0.00022602,3]
[349804308,1737436257589,-500.0,0.00022602,3]
[349804309,1737436257599,-813.03,0.00022602,3]
[349804310,1737436257608,-500.0,0.00022602,3]
[349804311,1737436257617,-500.0,0.00022602,3]
[349804312,1737436257627,-500.0,0.00022602,3]
[349804313,1737436257637,-814.58,0.00022602,3]
[349804314,1737436257647,-500.0,0.00022602,3]
[349804315,1737436257659,-500.0,0.00022602,3]
[349804316,1737436257668,-827.27,0.00022602,3]
[349804317,1737436257677,-747.15,0.00022602,3]
[349804318,1737436257687,-681.43,0.00022602,3]
[349804319,1737436257697,-500.0,0.00022602,3]
[349804320,1737436257706,-500.0,0.00022602,3]
[349804321,1737436257715,-500.0,0.00022602,3]
[349804322,1737436257724,-500.0,0.00022602,3]
[349804323,1737436257734,-500.0,0.00022602,3]
[349804324,1737436257743,-500.0,0.00022602,3]
[349804325,1737436257752,-998.18,0.00022602,3]
[349804326,1737436257765,-500.81,0.00022602,3]
[349804327,1737436257774,-500.0,0.00022602,3]
[349804328,1737436257783,-1253.69,0.00022602,3]
[349804329,1737436257794,-500.0,0.00022602,3]
[349804330,1737436257804,-500.0,0.00022602,3]
[349804331,1737436257814,-539.27,0.00022602,3]
[349804332,1737436257823,-859.92,0.00022602,3]
[349804333,1737436257833,-500.0,0.00022602,3]
[349804334,1737436257843,-500.0,0.00022602,3]
[349804335,1737436257852,-1244.51,0.00022602,3]
[349804336,1737436257862,-500.0,0.00022602,3]
[349804337,1737436257871,-500.0,0.00022602,3]
[349804338,1737436257881,-856.94,0.00022602,3]
[349804339,1737436257891,-500.0,0.00022602,3]
[349804340,1737436257901,-500.0,0.00022602,3]
[349804341,1737436257910,-565.02,0.00022602,3]
[349804342,1737436257919,-850.13,0.00022602,3]
[349804343,1737436257929,-500.0,0.00022602,3]
[349804344,1737436257939,-500.0,0.00022602,3]
[349804345,1737436257948,-511.72,0.00022602,3]
[349804346,1737436257959,-500.0,0.00022602,3]
[349804347,1737436257968,-560.81006224,0.00022602,3]
[349804348,1737436257979,-373.88691648,0.00022602,3]
[349804349,1737436257988,-260.84417526,0.00022602,3]
[349804350,1737436257997,-846.61,0.00022602,3]
[349804351,1737436258006,-500.0,0.00022602,3]
[349804352,1737436258015,-500.0,0.00022602,3]
[349804353,1737436258025,-510.96,0.00022602,3]
[349804354,1737436258034,-1671.98,0.00022602,2]
[349804355,1737436258043,-500.0,0.00022602,3]
[349804356,1737436258055,-500.0,0.00022602,3]
[349804357,1737436258064,-1863.02,0.00022602,3]
[349804358,1737436258074,-7275.37,0.00022602,3]
[349804359,1737436258083,-500.0,0.00022602,3]
[349804360,1737436258093,-500.0,0.00022602,3]
[349804361,1737436258102,-5517.57,0.00022602,3]
[349804362,1737436258112,-500.0,0.00022602,3]
[349804363,1737436258122,-500.0,0.00022602,3]
[349804364,1737436258131,-2016.17,0.00022602,3]
[349804365,1737436258141,-500.0,0.00022602,3]
[349804366,1737436258151,-718.57,0.00022602,3]
[349804367,1737436258162,-1581.02,0.00022602,3]
[349804368,1737436258172,-500.0,0.00022602,3]
[349804369,1737436258182,-849.72,0.00022602,3]
[349804370,1737436258192,-500.0,0.00022602,3]
[349804371,1737436258201,-1294.2,0.00022602,3]
[349804372,1737436258211,-567.86,0.00022602,3]
[349804373,1737436258221,-500.0,0.00022602,3]
[349804374,1737436258231,-795.86,0.00022602,3]
[349804375,1737436258240,-500.0,0.00022602,3]
[349804376,1737436258250,-500.0,0.00022602,3]
[349804377,1737436258259,-2490.81,0.00022602,3]
[349804378,1737436258269,-602.21,0.00022602,3]
[349804379,1737436258278,-598.1,0.00022602,3]
[349804380,1737436258288,-906.2,0.00022602,3]
[349804381,1737436258298,-376.77897941,0.00022602,3]
[349804382,1737436258309,-500.0,0.00022602,3]
[349804383,1737436258318,-500.0,0.00022602,3]
[349804384,1737436258328,-500.0,0.00022602,3]
[349804385,1737436258337,-500.0,0.00022602,3]
[349804386,1737436258347,-500.0,0.00022602,3]
[349804387,1737436258357,-500.0,0.00022602,3]
[349804388,1737436258366,-500.0,0.00022602,3]
[349804389,1737436258376,-517.62,0.00022602,3]
[349804390,1737436258385,-500.0,0.00022602,3]
[349804391,1737436258395,-500.0,0.00022602,3]
[349804392,1737436258405,-35047.46,0.00022602,3]
[349804393,1737436258415,-3672.32,0.00022602,3]
[349804394,1737436258424,-500.0,0.00022602,3]
[349804395,1737436258433,-8328.07,0.00022602,3]
[349804396,1737436258444,-16648.53,0.00022602,3]
[349804397,1737436258454,-989.27,0.00022602,3]
[349804398,1737436258463,-2149.07,0.00022602,3]
[349804399,1737436258473,-500.0,0.00022602,3]
[349804400,1737436258483,-500.0,0.00022602,3]
[349804401,1737436258493,-500.0,0.00022602,3]
[349804402,1737436258503,-1654.0,0.00022602,3]
[349804403,1737436258512,-714.08,0.00022602,3]
[349804404,1737436258521,-809.87,0.00022602,3]
[349804405,1737436258531,-1737.78,0.00022602,3]
[349804406,1737436258541,-520.12,0.00022602,3]
[349804407,1737436258552,-941.94,0.00022602,3]
[349804408,1737436258562,-668.23,0.00022602,3]
[349804409,1737436258571,-500.0,0.00022602,3]
[349804410,1737436258582,-4729.29,0.00022602,3]
[349804411,1737436258592,-760.16,0.00022602,3]
[349804412,1737436258601,-500.0,0.00022602,3]
[349804413,1737436258611,-1266.7,0.00022602,3]
[349804414,1737436258622,-395.31835985,0.00022602,3]
[349804415,1737436258632,-836.8,0.00022602,3]
[349804416,1737436258642,-924.68,0.00022602,3]
[349804417,1737436258653,-2889.09,0.00022602,3]
[349804418,1737436258664,-500.0,0.00022602,3]
[349804419,1737436258673,-966.7,0.00022602,3]
[349804420,1737436258682,-1666.36,0.00022602,3]
[349804421,1737436258692,-725.57,0.00022602,3]
[349804422,1737436258702,-500.0,0.00022602,3]
[349804423,1737436258711,-4625.09,0.00022602,3]
[349804424,1737436258722,-4079.3,0.00022602,3]
[349804425,1737436258733,-522.87,0.00022602,3]
[349804426,1737436258742,-500.0,0.00022602,3]
[349804427,1737436258752,-3344.02688604,0.00022602,3]
[349804428,1737436259414,-3754.264711,0.00021698,2]
[349804429,1737436259424,-1144.59,0.00021917,3]
[349804430,1737436259434,-500.0,0.00021917,3]
[349804431,1737436259444,-1144.59,0.00021917,3]
[349804432,1737436259453,-1144.59,0.00021917,3]
[349804433,1737436259463,-1144.77652417,0.00021917,3]
[349804434,1737436259472,-204.20621423,0.00021917,3]
[349804435,1737436259482,-500.0,0.00021917,3]
[349804436,1737436259491,-500.0,0.00021917,3]
[349804437,1737436259501,-500.0,0.00021917,3]
[349804438,1737436259510,-500.0,0.00021917,3]
[349804439,1737436259520,-500.0,0.00022054,3]
[349804440,1737436259530,-500.0,0.00022054,3]
[349804441,1737436259539,-500.0,0.00022054,3]
[349804442,1737436259549,-333.77839119,0.00022191,3]
[349804443,1737436259561,-4636.30311396,0.00022602,3]
[349804444,1737436259572,-3321.54,0.00022602,3]
[349804445,1737436259582,-2125.78,0.00022602,3]
[349804446,1737436259592,-700.2,0.00022602,3]
[349804447,1737436259602,-500.0,0.00022602,3]
[349804448,1737436259612,-500.0,0.00022602,3]
[349804449,1737436259622,-6212.15920924,0.00022602,3]
[349804450,1737436259633,-1256.60049774,0.00022602,3]
[349804451,1737436259650,-500.0,0.00022054,3]
[349804452,1737436259659,-4850.55029302,0.00022602,3]
[349804453,1737436259668,-654.58,0.00022602,3]
[349804454,1737436259678,-1504.03,0.00022602,3]
[349804455,1737436259687,-581.59,0.00022602,3]
[349804456,1737436259696,-1705.49,0.00022602,3]
[349804457,1737436259706,-1357.55,0.00022602,3]
[349804458,1737436259716,-500.0,0.00022602,3]
[349804459,1737436259725,-500.0,0.00022602,3]
[349804460,1737436259734,-500.0,0.00022602,3]
[349804461,1737436259744,-500.0,0.00022602,3]
[349804462,1737436259757,-841.13,0.00022602,3]
[349804463,1737436259768,-938.07,0.00022602,3]
[349804464,1737436259778,-688.07,0.00022602,3]
[349804465,1737436259787,-500.0,0.00022602,3]
[349804466,1737436259798,-2173.27,0.00022602,3]
[349804467,1737436259810,-500.0,0.00022602,3]
[349804468,1737436259820,-544.6,0.00022602,3]
[349804469,1737436259831,-47576.26,0.00022602,3]
[349804470,1737436259843,-676.95,0.00022602,3]
[349804471,1737436259852,-631.70867012,0.00022602,3]
[349804472,1737436259862,-500.0,0.00022602,3]
[349804473,1737436259872,-3665.17,0.00022602,3]
[349804474,1737436259881,-500.0,0.00022602,3]
[349804475,1737436259891,-2353.99,0.00022602,3]
[349804476,1737436259901,-438.82105282,0.00022602,3]
[349804477,1737436259911,-1000.0,0.00022621,2]
[349804478,1737436259921,-502.47215735,0.00022621,2]
[349804479,1737436259930,-500.0,0.00022624,2]
[349804480,1737436259940,-225.6,0.00022656,6]
[349804481,1737436259950,-8474.61,0.000227,14]
[349804482,1737436259959,-1000.0,0.00022721,2]
[349804483,1737436259969,-407.23884992,0.00022721,2]
[349804484,1737436259980,-380.3189031,0.00022721,2]
[349804485,1737436259989,-1000.0,0.00022721,2]
[349804486,1737436259999,-1000.0,0.00022721,2]
[349804487,1737436260009,-1000.0,0.00022721,2]
[349804488,1737436260019,-869.18454733,0.00022721,2]
[349804489,1737436260029,-500.0,0.00022739,3]
[349804490,1737436260040,-500.0,0.00022739,3]
[349804491,1737436260050,-184.52993089,0.00022739,3]
[349804492,1737436260064,-500.0,0.00022739,3]
[349804493,1737436260074,-500.0,0.00022739,3]
[349804494,1737436260084,-500.0,0.00022739,3]
[349804495,1737436260095,-1235.39,0.00022739,3]
[349804496,1737436260104,-500.0,0.00022739,3]
[349804497,1737436260114,-500.0,0.00022739,3]
[349804498,1737436260124,-796.12,0.00022739,3]
[349804499,1737436260133,-500.0,0.00022739,3]
[349804500,1737436260143,-500.0,0.00022739,3]
[349804501,1737436260152,-500.0,0.00022739,3]
[349804502,1737436260162,-998.97,0.00022739,3]
[349804503,1737436260172,-604.25,0.00022739,3]
[349804504,1737436260182,-188.0,0.00022739,2]
[349804505,1737436260191,-270.5480032,0.00022739,3]
[349804506,1737436260201,-500.0,0.00022739,3]
[349804507,1737436260210,-500.0,0.00022739,3]
[349804508,1737436260219,-543.27365146,0.00022739,3]
[349804509,1737436260229,-500.0,0.00022739,3]
[349804510,1737436260354,-500.0,0.00022739,3]
[349804511,1737436260364,-500.0,0.00022739,3]
[349804512,1737436260374,-500.0,0.00022739,3]
[349804513,1737436260383,-305.1910583,0.00022739,3]
[349804514,1737436260393,-500.0,0.00022739,3]
[349804515,1737436260402,-500.0,0.00022739,3]
[349804516,1737436260411,-500.0,0.00022739,3]
[349804517,1737436260421,-500.0,0.00022739,3]
[349804518,1737436260430,-500.0,0.00022739,3]
[349804519,1737436260439,-500.0,0.00022739,3]
[349804520,1737436260449,-500.0,0.00022739,3]
[349804521,1737436260459,-1333.83,0.00022739,3]
[349804522,1737436260468,-500.0,0.00022739,3]
[349804523,1737436260477,-500.0,0.00022739,3]
[349804524,1737436260487,-1527.69,0.00022739,3]
[349804525,1737436260497,-500.0,0.00022739,3]
[349804526,1737436260507,-500.0,0.00022739,3]
[349804527,1737436260516,-500.0,0.00022739,3]
[349804528,1737436260525,-500.0,0.00022739,3]
[349804529,1737436260535,-953.42,0.00022739,3]
[349804530,1737436260544,-500.0,0.00022739,3]
[349804531,1737436260555,-500.0,0.00022739,3]
[349804532,1737436260565,-500.0,0.00022739,3]
[349804533,1737436260574,-1913.55,0.00022739,3]
[349804534,1737436260583,-822.24,0.00022739,3]
[349804535,1737436260593,-500.0,0.00022739,3]
[349804536,1737436260603,-500.0,0.00022739,3]
[349804537,1737436260613,-824.53,0.00022739,3]
[349804538,1737436260623,-330.41293144,0.00022739,3]
[349804539,1737436260633,-591.97528324,0.00022739,3]
[349804540,1737436260642,-1171.5,0.00022739,3]
[349804541,1737436260652,-757.81,0.00022739,3]
[349804542,1737436260662,-730.74,0.00022739,3]
[349804543,1737436260672,-500.0,0.00022739,3]
[349804544,1737436260682,-717.4,0.00022739,3]
[349804545,1737436260692,-1169.85,0.00022739,3]
[349804546,1737436260701,-1423.53,0.00022739,3]
[349804547,1737436260711,-624.85,0.00022739,3]
[349804548,1737436260721,-500.0,0.00022739,3]
[349804549,1737436260730,-500.0,0.00022739,3]
[349804550,1737436260740,-813.03,0.00022739,3]
[349804551,1737436260750,-500.0,0.00022739,3]
[349804552,1737436260762,-500.0,0.00022739,3]
[349804553,1737436260772,-500.0,0.00022739,3]
[349804554,1737436260781,-814.58,0.00022739,3]
[349804555,1737436260791,-500.0,0.00022739,3]
[349804556,1737436260800,-500.0,0.00022739,3]
[349804557,1737436260811,-827.27,0.00022739,3]
[349804558,1737436260820,-747.15,0.00022739,3]
[349804559,1737436260830,-681.43,0.00022739,3]
[349804560,1737436260839,-500.0,0.00022739,3]
[349804561,1737436260849,-245.23295624,0.00022739,3]
[349804562,1737436260860,-500.0,0.00022739,3]
[349804563,1737436260869,-500.0,0.00022739,3]
[349804564,1737436260878,-500.0,0.00022739,3]
[349804565,1737436260888,-500.0,0.00022739,3]
[349804566,1737436260897,-998.18,0.00022739,3]
[349804567,1737436260906,-500.81,0.00022739,3]
[349804568,1737436260915,-500.0,0.00022739,3]
[349804569,1737436260926,-1253.69,0.00022739,3]
[349804570,1737436260936,-500.0,0.00022739,3]
[349804571,1737436260945,-500.0,0.00022739,3]
[349804572,1737436260956,-539.27,0.00022739,3]
[349804573,1737436260966,-859.92,0.00022739,3]
[349804574,1737436260975,-500.0,0.00022739,3]
[349804575,1737436260985,-525.27279852,0.00022739,3]
[349804576,1737436260994,-1244.51,0.00022739,3]
[349804577,1737436261003,-500.0,0.00022739,3]
[349804578,1737436261013,-500.0,0.00022739,3]
[349804579,1737436261022,-856.94,0.00022739,3]
[349804580,1737436261032,-500.0,0.00022739,3]
[349804581,1737436261041,-500.0,0.00022739,3]
[349804582,1737436261051,-565.02,0.00022739,3]
[349804583,1737436261062,-850.13,0.00022739,3]
[349804584,1737436261071,-500.0,0.00022739,3]
[349804585,1737436261080,-505.76061741,0.00022739,3]
[349804586,1737436261090,-511.72,0.00022739,3]
[349804587,1737436261100,-500.0,0.00022739,3]
[349804588,1737436261110,-846.61,0.00022739,3]
[349804589,1737436261120,-500.0,0.00022739,3]
[349804590,1737436261129,-500.0,0.00022739,3]
[349804591,1737436261139,-510.96,0.00022739,3]
[349804592,1737436261149,-1671.98,0.00022739,2]
[349804593,1737436261159,-500.0,0.00022739,3]
[349804594,1737436261168,-500.0,0.00022739,3]
[349804595,1737436261177,-1863.02,0.00022739,3]
[349804596,1737436261188,-7275.37,0.00022739,3]
[349804597,1737436261198,-505.26753752,0.00022739,3]
[349804598,1737436261208,-500.0,0.00022739,3]